fUST/lending_fUST_20240910
["ID","MTS","AMOUNT","RATE_DAILY","PERIOD"]
[337698798,1725976241191,-151.0,0.0001867,2]
[337698799,1725976241201,-151.0,0.0001867,2]
[337698800,1725976241211,-151.0,0.0001867,2]
[337698801,1725976241220,-289.122703,0.0001867,2]
[337698802,1725976241230,-500.0,0.0001867,2]
[337698803,1725976241239,-500.0,0.0001867,2]
[337698804,1725976241249,-500.0,0.0001867,2]
[337698805,1725976241259,-500.0,0.0001867,2]
[337698806,1725976241270,-289.122703,0.0001867,2]
[337698807,1725976241279,-151.0,0.0001867,2]
[337698808,1725976241289,-500.0,0.00018671,2]
[337698809,1725976241298,-500.0,0.00018671,2]
[337698810,1725976241308,-500.0,0.00018671,2]
[337698811,1725976241319,-500.0,0.00018671,2]
[337698812,1725976241328,-500.0,0.00018671,2]
[337698813,1725976241337,-500.0,0.00018671,2]
[337698814,1725976241347,-510.21552978,0.00018671,2]
[337698815,1725976241356,-1255.72,0.00018671,2]
[337698816,1725976241366,-500.0,0.00018671,2]
[337698817,1725976241375,-500.0,0.00018671,2]
[337698818,1725976241384,-645.18,0.00018671,2]
[337698819,1725976241394,-500.0,0.00018671,2]
[337698820,1725976241403,-500.0,0.00018671,2]
[337698821,1725976241412,-532.84,0.00018671,2]
[337698822,1725976241421,-500.0,0.00018671,2]
[337698823,1725976241431,-500.0,0.00018671,2]
[337698824,1725976241440,-501.74265565,0.00018671,2]
[337698825,1725976241450,-1498.78,0.00018671,2]
[337698826,1725976241459,-507.94989365,0.00018671,2]
[337698827,1725976241468,-500.0,0.00018671,2]
[337698828,1725976241477,-254.89578595,0.00018671,2]
[337698829,1725976241488,-500.0,0.00018671,2]
[337698830,1725976241499,-500.0,0.00018671,2]
[337698831,1725976241508,-1432.3,0.00018671,2]
[337698832,1725976241518,-510.23244367,0.00018671,2]
[337698833,1725976241528,-500.0,0.00018671,2]
[337698834,1725976241538,-500.0,0.00018671,2]
[337698835,1725976241547,-501.72,0.00018671,2]
[337698836,1725976241557,-2341.06,0.00018671,2]
[337698837,1725976241570,-500.0,0.00018671,2]
[337698838,1725976241580,-1072.81,0.00018671,2]
[337698839,1725976241590,-500.0,0.00018671,2]
[337698840,1725976241599,-1013.82,0.00018671,2]
[337698841,1725976241609,-500.0,0.00018671,2]
[337698842,1725976241618,-500.0,0.00018671,2]
[337698843,1725976241627,-151.0,0.00018671,2]
[337698844,1725976241637,-151.0,0.00018671,2]
[337698845,1725976241647,-664.51,0.00018671,2]
[337698846,1725976241657,-277.041058,0.00018671,2]
[337698847,1725976241667,-1720.84,0.00018671,2]
[337698848,1725976241677,-500.0,0.00018671,2]
[337698849,1725976241686,-151.0,0.00018671,2]
[337698850,1725976241696,-151.0,0.00018671,2]
[337698851,1725976241706,-154.069512,0.00018671,2]
[337698852,1725976241716,-985.16,0.00018671,2]
[337698853,1725976241725,-500.0,0.00018671,2]
[337698854,1725976241735,-151.0,0.00018671,2]
[337698855,1725976241744,-500.0,0.00018671,2]
[337698856,1725976241755,-617.24,0.00018671,2]
[337698857,1725976241764,-507.71566468,0.00018671,2]
[337698858,1725976241774,-500.0,0.00018671,2]
[337698859,1725976241783,-847.0,0.00018671,2]
[337698860,1725976241794,-500.0,0.00018671,2]
[337698861,1725976241803,-500.0,0.00018671,2]
[337698862,1725976241812,-151.0,0.00018671,2]
[337698863,1725976241821,-151.0,0.00018671,2]
[337698864,1725976241831,-818.73,0.00018671,2]
[337698865,1725976241840,-1644.85,0.00018671,2]
[337698866,1725976241850,-500.0,0.00018671,2]
[337698867,1725976241859,-151.0,0.00018671,2]
[337698868,1725976241868,-563.909523,0.00018671,2]
[337698869,1725976241878,-151.0,0.00018671,2]
[337698870,1725976241887,-563.909523,0.00018671,2]
[337698871,1725976241897,-500.0,0.00018671,2]
[337698872,1725976241906,-151.0,0.00018671,2]
[337698873,1725976241915,-151.0,0.00018671,2]
[337698874,1725976241925,-4462.87,0.00018671,2]
[337698875,1725976241935,-503.92364613,0.00018671,2]
[337698876,1725976241944,-500.0,0.00018671,2]
[337698877,1725976241954,-151.0,0.00018671,2]
[337698878,1725976241964,-151.0,0.00018671,2]
[337698879,1725976241974,-500.0,0.00018671,2]
[337698880,1725976241984,-500.0,0.00018671,2]
[337698881,1725976241994,-959.05,0.00018671,2]
[337698882,1725976242004,-1589.59,0.00018671,2]
[337698883,1725976242015,-500.0,0.00018671,2]
[337698884,1725976242025,-289.122703,0.00018671,2]
[337698885,1725976242034,-289.122703,0.00018671,2]
[337698886,1725976242044,-500.0,0.00018671,2]
[337698887,1725976242054,-500.0,0.00018671,2]
[337698888,1725976242066,-289.122703,0.00018671,2]
[337698889,1725976242075,-289.122703,0.00018671,2]
[337698890,1725976242085,-218.15357974,0.00018671,2]
[337698891,1725976242094,-502.91650469,0.00018671,2]
[337698892,1725976242103,-2076.33,0.00018671,2]
[337698893,1725976242113,-500.0,0.00018671,2]
[337698894,1725976242123,-503.81408358,0.00018671,2]
[337698895,1725976242132,-500.0,0.00018671,2]
[337698896,1725976242142,-3470.69,0.00018671,2]
[337698897,1725976242152,-708.86,0.00018671,2]
[337698898,1725976242162,-500.0,0.00018671,2]
[337698899,1725976242171,-151.0,0.00018671,2]
[337698900,1725976242182,-156.827101,0.00018671,2]
[337698901,1725976242193,-1058.33,0.00018671,2]
[337698902,1725976242203,-500.0,0.00018671,2]
[337698903,1725976242213,-500.0,0.00018671,2]
[337698904,1725976242222,-151.0,0.00018671,2]
[337698905,1725976242234,-151.0,0.00018671,2]
[337698906,1725976242243,-500.0,0.00018671,2]
[337698907,1725976242254,-2034.81,0.00018671,2]
[337698908,1725976242265,-4565.46,0.00018671,2]
[337698909,1725976242275,-500.0,0.00018671,2]
[337698910,1725976242285,-448.07582262,0.00018671,2]
[337698911,1725976242294,-500.0,0.00018671,2]
[337698912,1725976242304,-1077.97,0.00018671,2]
[337698913,1725976242315,-1571.36,0.00018671,2]
[337698914,1725976242326,-500.0,0.00018671,2]
[337698915,1725976242335,-621.35,0.00018671,2]
[337698916,1725976242344,-151.0,0.00018671,2]
[337698917,1725976242356,-156.49361723,0.00018671,2]
[337698918,1725976242366,-502.98841147,0.00018671,2]
[337698919,1725976242376,-3511.98,0.00018671,2]
[337698920,1725976242386,-500.0,0.00018671,2]
[337698921,1725976242396,-586.02849378,0.00018671,2]
[337698922,1725976242406,-151.0,0.00018671,2]
[337698923,1725976242416,-151.0,0.00018671,2]
[337698924,1725976242428,-151.0,0.00018671,2]
[337698925,1725976242438,-589.46,0.00018671,2]
[337698926,1725976242448,-1849.39,0.00018671,2]
[337698927,1725976242457,-500.0,0.00018671,2]
[337698928,1725976242467,-789.46,0.00018671,2]
[337698929,1725976242477,-500.0,0.00018671,2]
[337698930,1725976242486,-151.0,0.00018671,2]
[337698931,1725976242498,-151.0,0.00018671,2]
[337698932,1725976242509,-151.0,0.00018671,2]
[337698933,1725976242518,-503.21125443,0.00018671,2]
[337698934,1725976242529,-1738.8,0.00018671,2]
[337698935,1725976242539,-500.0,0.00018671,2]
[337698936,1725976242548,-503.94,0.00018671,2]
[337698937,1725976242558,-667.27,0.00018671,2]
[337698938,1725976242570,-500.0,0.00018671,2]
[337698939,1725976242580,-151.0,0.00018671,2]
[337698940,1725976242589,-151.0,0.00018671,2]
[337698941,1725976242599,-151.0,0.00018671,2]
[337698942,1725976242608,-151.0,0.00018671,2]
[337698943,1725976242617,-151.0,0.00018671,2]
[337698944,1725976242627,-500.0,0.00018671,2]
[337698945,1725976242638,-500.0,0.00018671,2]
[337698946,1725976242647,-500.0,0.00018671,2]
[337698947,1725976242657,-151.0,0.00018671,2]
[337698948,1725976242667,-833.59,0.00018671,2]
[337698949,1725976242677,-701.54,0.00018671,2]
[337698950,1725976242687,-500.0,0.00018671,2]
[337698951,1725976242697,-151.863432,0.00018671,2]
[337698952,1725976242707,-151.863432,0.00018671,2]
[337698953,1725976242716,-151.863432,0.00018671,2]
[337698954,1725976242726,-151.863432,0.00018671,2]
[337698955,1725976242736,-41369.73,0.00018671,2]
[337698956,1725976242746,-151.863432,0.00018671,2]
[337698957,1725976242757,-151.863432,0.00018671,2]
[337698958,1725976242768,-500.0,0.00018671,2]
[337698959,1725976242777,-1029.38,0.00018671,2]
[337698960,1725976242788,-500.0,0.00018671,2]
[337698961,1725976242798,-500.0,0.00018671,2]
[337698962,1725976242808,-751.39,0.00018671,2]
[337698963,1725976242823,-151.0,0.00018671,2]
[337698964,1725976242838,-151.0,0.00018671,2]
[337698965,1725976242847,-212.92267992,0.00018671,2]
[337698966,1725976242857,-553.37,0.00018671,2]
[337698967,1725976242867,-500.0,0.00018671,2]
[337698968,1725976242876,-151.0,0.00018671,2]
[337698970,1725976242886,-500.0,0.00018671,2]
[337698972,1725976242895,-151.0,0.00018671,2]
[337698974,1725976242905,-151.0,0.00018671,2]
[337698976,1725976242916,-151.0,0.00018671,2]
[337698978,1725976242927,-151.0,0.00018671,2]
[337698980,1725976242937,-301.416514,0.00018671,2]
[337698981,1725976242947,-151.0,0.00018671,2]
[337698983,1725976242957,-500.0,0.00018671,2]
[337698985,1725976242968,-151.0,0.00018671,2]
[337698987,1725976242978,-151.0,0.00018671,2]
[337698989,1725976242988,-500.0,0.00018671,2]
[337698990,1725976242998,-151.0,0.00018671,2]
[337698991,1725976243008,-500.0,0.00018671,2]
[337698992,1725976243018,-151.0,0.00018671,2]
[337698993,1725976243027,-956.02,0.00018671,2]
[337698994,1725976243038,-151.0,0.00018671,2]
[337698995,1725976243048,-500.0,0.00018672,2]
[337698996,1725976243058,-151.0,0.00018672,2]
[337698997,1725976243078,-272.180285,0.00018672,2]
[337698999,1725976243088,-151.0,0.00018672,2]
[337699001,1725976243098,-151.0,0.00018672,2]
[337699002,1725976243107,-151.0,0.00018672,2]
[337699003,1725976243118,-151.0,0.00018672,2]
[337699004,1725976243128,-563.909523,0.00018672,2]
[337699005,1725976243138,-563.909523,0.00018672,2]
[337699006,1725976243148,-6258.42,0.00018672,2]
[337699007,1725976243158,-753.3,0.00018672,2]
[337699008,1725976243168,-151.0,0.00018672,2]
[337699009,1725976243178,-151.0,0.00018672,2]
[337699010,1725976243188,-2069.06,0.00018672,2]
[337699011,1725976243198,-500.0,0.00018672,2]
[337699012,1725976243209,-1429.11,0.00018672,2]
[337699013,1725976243219,-2096.69,0.00018672,2]
[337699014,1725976243229,-4274.12,0.00018672,2]
[337699015,1725976243239,-151.0,0.00018672,2]
[337699016,1725976243250,-221.51401,0.00018672,2]
[337699017,1725976243260,-852.66,0.00018672,2]
[337699018,1725976243270,-500.0,0.00018672,2]
[337699019,1725976243281,-214.949978,0.00018672,2]
[337699020,1725976243291,-151.863432,0.00018672,2]
[337699021,1725976243300,-1568.08,0.00018672,2]
[337699022,1725976243310,-151.863432,0.00018672,2]
[337699023,1725976243326,-700.72,0.00018672,2]
[337699024,1725976243336,-1293.67,0.00018672,2]
[337699025,1725976243346,-151.0,0.00018672,2]
[337699026,1725976243356,-151.0,0.00018672,2]
[337699027,1725976243366,-1430.43,0.00018672,2]
[337699028,1725976243376,-151.0,0.00018672,2]
[337699029,1725976243386,-310.42072585,0.00018673,2]
[337699030,1725976243395,-500.0,0.00018673,2]
[337699031,1725976243406,-500.0,0.00018673,2]
[337699032,1725976243417,-500.0,0.00018673,2]
[337699033,1725976243426,-500.0,0.00018673,2]
[337699034,1725976243436,-500.0,0.00018673,2]
[337699035,1725976243446,-160.83567434,0.00018673,2]
[337699036,1725976243456,-500.0,0.00018673,2]
[337699037,1725976243466,-159.38357622,0.00018673,2]
[337699038,1725976243477,-500.2120478,0.00018673,2]
[337699039,1725976243628,-203.98542417,0.00018673,2]
[337699040,1725976243639,-500.0,0.00018673,2]
[337699041,1725976243649,-500.0,0.00018673,2]
[337699042,1725976243658,-500.0,0.00018673,2]
[337699043,1725976243669,-500.0,0.00018673,2]
[337699044,1725976243678,-434.86258447,0.00018673,2]
[337699045,1725976243688,-160.05405387,0.00018673,2]
[337699046,1725976243697,-403.59816247,0.00018673,2]
[337699047,1725976243707,-500.0,0.00018673,2]
[337699048,1725976243717,-304.61410126,0.00018673,2]
[337699049,1725976243727,-500.0,0.00018673,2]
[337699050,1725976243738,-500.0,0.00018673,2]
[337699051,1725976243749,-500.0,0.00018673,2]
[337699052,1725976243759,-151.0,0.00018684,2]
[337699053,1725976243768,-500.0,0.00018684,2]
[337699054,1725976243778,-500.0,0.00018684,2]
[337699055,1725976243789,-500.0,0.00018685,2]
[337699057,1725976243798,-151.0,0.00018686,2]
[337699059,1725976243808,-151.0,0.00018686,2]
[337699061,1725976243820,-151.0,0.00018686,2]
[337699063,1725976243830,-500.0,0.00018686,2]
[337699064,1725976243839,-151.0,0.00018686,2]
[337699065,1725976243849,-151.0,0.00018686,2]
[337699068,1725976243861,-563.909523,0.00018686,2]
[337699070,1725976243871,-563.909523,0.00018686,2]
[337699072,1725976243881,-151.0,0.00018686,2]
[337699074,1725976243891,-151.0,0.00018686,2]
[337699076,1725976243900,-289.122703,0.00018686,2]
[337699078,1725976243910,-289.122703,0.00018686,2]
[337699080,1725976243919,-500.0,0.00018686,2]
[337699082,1725976243929,-500.0,0.00018686,2]
[337699084,1725976243938,-561.11,0.00018686,2]
[337699086,1725976243948,-500.0,0.00018686,2]
[337699088,1725976243959,-209.11715,0.00018687,2]
[337699090,1725976243968,-500.0,0.00018687,2]
[337699092,1725976243978,-500.0,0.00018687,2]
[337699094,1725976243988,-500.0,0.00018687,2]
[337699096,1725976243997,-500.0,0.00018687,2]
[337699098,1725976244008,-500.0,0.00018687,2]
[337699100,1725976244019,-151.863432,0.00018687,2]
[337699102,1725976244028,-151.863432,0.00018687,2]
[337699105,1725976244038,-151.0,0.00018687,2]
[337699107,1725976244048,-151.0,0.00018687,2]
[337699109,1725976244057,-93783.4233694,0.00018688,2]
[337699111,1725976244070,-151.42381,0.00018688,2]
[337699113,1725976244080,-151.0,0.00018688,2]
[337699115,1725976244089,-151.0,0.00018688,2]
[337699117,1725976244099,-151.0,0.00018688,2]
[337699119,1725976244109,-151.0,0.00018688,2]
[337699121,1725976244118,-151.0,0.00018688,2]
[337699123,1725976244128,-151.0,0.00018688,2]
[337699125,1725976244138,-151.0,0.00018688,2]
[337699127,1725976244148,-298.524993,0.00018688,2]
[337699129,1725976244158,-151.0,0.00018688,2]
[337699131,1725976244168,-151.0,0.00018688,2]
[337699133,1725976244178,-151.0,0.00018688,2]
[337699135,1725976244188,-563.909523,0.00018688,2]
[337699137,1725976244197,-156.123311,0.00018688,2]
[337699139,1725976244207,-563.909523,0.00018688,2]
[337699141,1725976244216,-151.0,0.00018688,2]
[337699143,1725976244225,-289.122703,0.00018688,2]
[337699145,1725976244235,-289.122703,0.00018688,2]
[337699148,1725976244245,-151.0,0.00018688,2]
[337699150,1725976244254,-151.0,0.00018688,2]
[337699152,1725976244265,-151.863432,0.00018688,2]
[337699154,1725976244275,-151.863432,0.00018688,2]
[337699156,1725976244287,-151.0,0.00018688,2]
[337699158,1725976244298,-151.0,0.00018688,2]
[337699160,1725976244307,-500.0,0.00018689,2]
[337699162,1725976244319,-500.0,0.00018689,2]
[337699164,1725976244329,-500.0,0.00018689,2]
[337699166,1725976244338,-500.0,0.00018689,2]
[337699168,1725976244347,-151.0,0.0001869,2]
[337699170,1725976244357,-151.0,0.0001869,2]
[337699172,1725976244367,-10000.0,0.0001869,2]
[337699174,1725976244376,-10000.0,0.0001869,2]
[337699176,1725976244386,-440.92279457,0.0001869,2]
[337699178,1725976244395,-151.0,0.0001869,2]
[337699180,1725976244405,-151.0,0.0001869,2]
[337699183,1725976244414,-151.303756,0.0001869,2]
[337699185,1725976244423,-151.0,0.0001869,2]
[337699187,1725976244434,-151.0,0.0001869,2]
[337699189,1725976244443,-151.0,0.0001869,2]
[337699191,1725976244453,-151.0,0.0001869,2]
[337699193,1725976244462,-151.0,0.0001869,2]
[337699195,1725976244471,-72041.91,0.0001869,2]
[337699197,1725976244481,-163.544642,0.0001869,2]
[337699199,1725976244490,-666.75,0.0001869,2]
[337699201,1725976244501,-151.0,0.0001869,2]
[337699203,1725976244511,-563.909523,0.0001869,2]
[337699204,1725976244520,-563.909523,0.0001869,2]
[337699205,1725976244530,-500.0,0.0001869,2]
[337699206,1725976244539,-151.0,0.0001869,2]
[337699207,1725976244548,-500.0,0.0001869,2]
[337699208,1725976244558,-333.56,0.0001869,2]
[337699209,1725976244571,-151.0,0.0001869,2]
[337699210,1725976244580,-151.0,0.0001869,2]
[337699211,1725976244589,-151.0,0.0001869,2]
[337699212,1725976244598,-151.0,0.0001869,2]
[337699213,1725976244607,-151.863432,0.0001869,2]
[337699214,1725976244617,-151.86344,0.0001869,2]
[337699215,1725976244626,-151.0,0.0001869,2]
[337699216,1725976244635,-151.0,0.0001869,2]
[337699217,1725976244646,-656.47594685,0.00018691,2]
[337699218,1725976244655,-500.0,0.00018691,2]
[337699219,1725976244665,-500.0,0.00018691,2]
[337699220,1725976244675,-151.0,0.00018691,2]
[337699221,1725976244685,-500.0,0.00018691,2]
[337699222,1725976244695,-1495.54,0.00018691,2]
[337699223,1725976244706,-500.0,0.00018691,2]
[337699224,1725976244715,-690.99,0.00018691,2]
[337699225,1725976244726,-500.0,0.00018691,2]
[337699226,1725976244736,-529.67269646,0.00018691,2]
[337699227,1725976244747,-178.01214032,0.00018691,2]
[337699228,1725976244757,-500.0,0.00018691,2]
[337699229,1725976244767,-500.0,0.00018691,2]
[337699230,1725976244776,-500.0,0.00018691,2]
[337699231,1725976244787,-500.0,0.00018691,2]
[337699232,1725976244796,-500.0,0.00018691,2]
[337699233,1725976244806,-500.0,0.00018691,2]
[337699234,1725976244817,-500.0,0.00018691,2]
[337699235,1725976244826,-500.0,0.00018691,2]
[337699236,1725976244835,-500.0,0.00018691,2]
[337699237,1725976244844,-500.0,0.00018691,2]
[337699238,1725976244854,-500.0,0.00018691,2]
[337699239,1725976244863,-500.0,0.00018691,2]
[337699240,1725976244872,-503.54279837,0.00018691,2]
[337699241,1725976244881,-500.0,0.00018691,2]
[337699242,1725976244890,-500.0,0.00018691,2]
[337699243,1725976244900,-506.45396888,0.00018691,2]
[337699244,1725976244911,-500.0,0.00018691,2]
[337699245,1725976244922,-809.77,0.00018691,2]
[337699246,1725976244932,-500.0,0.00018691,2]
[337699247,1725976244942,-500.0,0.00018691,2]
[337699248,1725976244951,-151.0,0.00018691,2]
[337699249,1725976244961,-500.0,0.00018691,2]
[337699250,1725976244971,-151.0,0.00018691,2]
[337699251,1725976244980,-1892.71,0.00018691,2]
[337699252,1725976244989,-500.0,0.00018691,2]
[337699253,1725976244999,-500.0,0.00018691,2]
[337699254,1725976245008,-500.0,0.00018691,2]
[337699255,1725976245018,-1131.5,0.00018691,2]
[337699256,1725976245027,-500.0,0.00018691,2]
[337699257,1725976245036,-151.0,0.00018691,2]
[337699258,1725976245046,-151.0,0.00018691,2]
[337699259,1725976245056,-152.812093,0.00018691,2]
[337699260,1725976245067,-1250.18,0.00018691,2]
[337699261,1725976245076,-716.75,0.00018691,2]
[337699262,1725976245085,-655.23,0.00018691,2]
[337699263,1725976245095,-502.07801065,0.00018691,2]
[337699264,1725976245104,-500.0,0.00018691,2]
[337699265,1725976245114,-500.0,0.00018691,2]
[337699266,1725976245124,-566.18,0.00018691,2]
[337699267,1725976245133,-509.6037881,0.00018691,2]
[337699268,1725976245143,-500.0,0.00018691,2]
[337699269,1725976245153,-531.23397292,0.00018691,2]
[337699270,1725976245163,-502.5778232,0.00018691,2]
[337699271,1725976245173,-500.0,0.00018691,2]
[337699272,1725976245182,-500.0,0.00018691,2]
[337699273,1725976245191,-500.0,0.00018691,2]
[337699274,1725976245200,-500.0,0.00018691,2]
[337699275,1725976245210,-500.0,0.00018691,2]
[337699276,1725976245220,-1222.8,0.00018691,2]
[337699277,1725976245229,-506.6441311,0.00018691,2]
[337699278,1725976245238,-500.0,0.00018691,2]
[337699279,1725976245247,-500.0,0.00018691,2]
[337699280,1725976245259,-500.0,0.00018691,2]
[337699281,1725976245268,-500.0,0.00018691,2]
[337699282,1725976245277,-505.55480534,0.00018691,2]
[337699283,1725976245287,-502.99275609,0.00018691,2]
[337699284,1725976245296,-500.0,0.00018691,2]
[337699285,1725976245305,-504.67577351,0.00018691,2]
[337699286,1725976245315,-542.91584567,0.00018691,2]
[337699287,1725976245324,-500.0,0.00018691,2]
[337699288,1725976245333,-500.0,0.00018691,2]
[337699289,1725976245342,-500.0,0.00018691,2]
[337699290,1725976245352,-578.02,0.00018691,2]
[337699291,1725976245362,-500.0,0.00018691,2]
[337699292,1725976245372,-500.0,0.00018691,2]
[337699293,1725976245381,-641.95,0.00018691,2]
[337699294,1725976245392,-500.0,0.00018691,2]
[337699295,1725976245402,-501.02926265,0.00018691,2]
[337699296,1725976245411,-503.16320642,0.00018691,2]
[337699297,1725976245420,-267.5393726,0.00018691,2]
[337699298,1725976245430,-500.0,0.00018691,2]
[337699299,1725976245440,-500.0,0.00018691,2]
[337699300,1725976245449,-500.0,0.00018691,2]
[337699301,1725976245458,-1320.62,0.00018691,2]
[337699302,1725976245468,-500.0,0.00018691,2]
[337699303,1725976245477,-500.0,0.00018691,2]
[337699304,1725976245487,-502.20021747,0.00018691,2]
[337699305,1725976245499,-500.0,0.00018691,2]
[337699306,1725976245508,-500.0,0.00018691,2]
[337699307,1725976245518,-500.0,0.00018691,2]
[337699308,1725976245528,-500.0,0.00018691,2]
[337699309,1725976245543,-506.75939414,0.00018691,2]
[337699310,1725976245553,-735.34,0.00018691,2]
[337699311,1725976245564,-510.50565031,0.00018691,2]
[337699312,1725976245577,-500.0,0.00018691,2]
[337699313,1725976245587,-500.0,0.00018691,2]
[337699314,1725976245597,-500.0,0.00018691,2]
[337699315,1725976245606,-500.0,0.00018691,2]
[337699316,1725976245615,-500.0,0.00018691,2]
[337699317,1725976245625,-504.96329044,0.00018691,2]
[337699318,1725976245634,-151.0,0.00018691,2]
[337699319,1725976245645,-151.0,0.00018691,2]
[337699320,1725976245660,-151.0,0.00018691,2]
[337699321,1725976245670,-554.47,0.00018691,2]
[337699322,1725976245679,-151.0,0.00018691,2]
[337699323,1725976245689,-151.0,0.00018691,2]
[337699324,1725976245699,-151.0,0.00018691,2]
[337699325,1725976245709,-151.0,0.00018691,2]
[337699326,1725976245718,-500.0,0.00018691,2]
[337699327,1725976245728,-500.0,0.00018691,2]
[337699328,1725976245739,-500.0,0.00018691,2]
[337699329,1725976245748,-500.0,0.00018691,2]
[337699330,1725976245758,-500.0,0.00018691,2]
[337699331,1725976245769,-937.82,0.00018691,2]
[337699332,1725976245778,-500.0,0.00018691,2]
[337699333,1725976245789,-500.0,0.00018691,2]
[337699334,1725976245798,-500.0,0.00018691,2]
[337699335,1725976245807,-500.0,0.00018691,2]
[337699336,1725976245825,-877.84,0.00018691,2]
[337699337,1725976245835,-500.0,0.00018691,2]
[337699339,1725976245844,-151.0,0.00018691,2]
[337699340,1725976245854,-151.0,0.00018691,2]
[337699341,1725976245863,-151.0,0.00018691,2]
[337699342,1725976245873,-151.0,0.00018691,2]
[337699343,1725976245883,-151.0,0.00018691,2]
[337699344,1725976245892,-588.06716988,0.00018691,2]
[337699345,1725976245902,-500.0,0.00018691,2]
[337699346,1725976245911,-500.0,0.00018691,2]
[337699347,1725976245921,-500.0,0.00018691,2]
[337699348,1725976245931,-1086.75,0.00018691,2]
[337699349,1725976245941,-980.26,0.00018691,2]
[337699351,1725976245950,-500.0,0.00018691,2]
[337699353,1725976245959,-506.46123002,0.00018691,2]
[337699355,1725976245969,-500.0,0.00018691,2]
[337699357,1725976245979,-500.0,0.00018691,2]
[337699359,1725976245988,-151.0,0.00018691,2]
[337699361,1725976245998,-500.0,0.00018691,2]
[337699362,1725976246007,-500.0,0.00018691,2]
[337699363,1725976246017,-833.34,0.00018691,2]
[337699364,1725976246027,-920.92,0.00018691,2]
[337699365,1725976246036,-791.74,0.00018691,2]
[337699366,1725976246046,-500.0,0.00018691,2]
[337699367,1725976246056,-500.0,0.00018691,2]
[337699368,1725976246069,-394.54116609,0.00018691,2]
[337699369,1725976246078,-780.94,0.00018691,2]
[337699370,1725976246087,-500.0,0.00018691,2]
[337699371,1725976246096,-500.0,0.00018691,2]
[337699372,1725976246106,-500.0,0.00018691,2]
[337699373,1725976246116,-151.0,0.00018691,2]
[337699374,1725976246128,-151.0,0.00018691,2]
[337699375,1725976246137,-500.0,0.00018691,2]
[337699376,1725976246147,-151.0,0.00018691,2]
[337699377,1725976246157,-703.84,0.00018691,2]
[337699378,1725976246174,-500.0,0.00018691,2]
[337699381,1725976246340,-500.0,0.00018691,2]
[337699382,1725976246351,-500.0,0.00018691,2]
[337699383,1725976246360,-500.0,0.00018691,2]
[337699384,1725976246370,-1844.49,0.00018691,2]
[337699385,1725976246379,-500.0,0.00018691,2]
[337699386,1725976246388,-500.0,0.00018691,2]
[337699387,1725976246398,-500.0,0.00018691,2]
[337699388,1725976246407,-500.0,0.00018691,2]
[337699389,1725976246417,-2006.21,0.00018691,2]
[337699390,1725976246427,-500.0,0.00018691,2]
[337699391,1725976246437,-1004.6,0.00018691,2]
[337699392,1725976246448,-500.0,0.00018691,2]
[337699393,1725976246458,-500.0,0.00018691,2]